{"text_format":"1","workbook":"xlsx","n_sheets":6,"sheets":["Info","Antragstammdaten","Tabelle1","Personalkostenhilfe","Antragsberechtigung","Tooldaten"],"not_rendered":{"charts":0,"images":7,"macros":1,"external_links":0,"defined_names":7,"comments":1,"pivot_tables":0},"unopened":[],"bounds":{"document_bytes":16777216,"sheet_cells":100000,"rows_first":2000,"rows_last":500,"rows_between":2000,"halvings":0,"cell_chars":16384,"cell_head_chars":4096},"cells_cut":0,"cells_raw":0,"read":"whole","date_system":"1900"}

{"sheet":"Info","index":0,"n_rows":36,"n_cols":3,"rows_kept":36,"cut":false,"hidden":false,"merged":[[2,0,2,1],[28,2,29,3],[7,2,8,4],[14,2,15,4],[16,2,16,4],[17,2,17,4],[18,2,18,4],[23,2,24,4],[26,2,26,4],[4,2,6,4],[11,2,12,4],[30,2,30,4],[0,2,0,3],[1,2,1,3],[32,2,33,3],[32,4,33,4],[19,2,21,4],[25,2,25,4],[27,2,27,4],[31,2,31,4],[9,2,10,4]]}
[null,null,{"$f":"Tooldaten!D5","v":"Tool zur Corona-Überbrückungshilfe 3 Plus "}]
[]
[{"$f":"Tooldaten!D6","v":"V1.5"}]
[null,{"$f":"\"Über \"&\"\"\"\"&Tooldaten!D5&\"\"\" \"","v":"Über \"Tool zur Corona-Überbrückungshilfe 3 Plus \" "}]
[null,null,"Am 12. Juni 2020 hat die Bundesregierung die Eckpunkte für die „Überbrückungshilfe“ beschlossen und diese nach der 1., 2. und 3. Phase (Förderzeitraum Juni-August 2020, September-Dezember 2020 bzw. Förderzeitraum November 2020-Juni 2021) um die Überbrückungshilfe 3 Plus (Förderzeitraum Juli-September 2021) verlängert.\nAntragsberechtigt für diese Überbrückungshilfe 3 Plus sind folgende Unternehmen:"]
[]
[]
[null,null,"n Größere Unternehmen mit bis zu einem Umsatz von 750 Mio. Euro im Jahr 2020, die mittelbar und unmittelbar Corona-bedingt erhebliche Umsatzausfälle erleiden."]
[]
[null,null,"n Gemeinnützige Unternehmen und Organisationen aus allen Branchen."]
[]
[null,null,"n Soloselbständige und selbständige Angehörige der Freien Berufe aller Branchen für den Förderzeitraum Juli 2021 bis September 2021."]
[]
[]
[null,null,"n Unternehmen, die in einem Monat einen Corona-bedingten Umsatzeinbruch von mindestens 30 Prozent im Vergleich zum Referenzmonat im Jahr 2019 erlitten haben. "]
[]
[null,null,"Die Antragsstellung muss von einem vom Antragssteller beauftragten prüfenden Dritten durchgeführt werden. In der "]
[null,null,"FAQ-Liste des Bundes zur Überbrückungshilfe "]
[null,null,"ist definiert, wer dies im Einzelnen ist."]
[null,null,"Das Excel-Tool unterstützt Sie bei der Beantragung der Überbrückungshilfe 3 Plus. Prüfen Sie mit Hilfe der Datei die Antragsvoraussetzungen, und erfassen Sie die Umsatz- und Fixkostenschätzung für die Fördermonate. Profitieren Sie von einer automatischen Berechnung des Fördersatzes und der voraussichtlichen Förderhöhe."]
[]
[]
[null,"Hinweise"]
[null,null,"Zur Definition der antragsrelevanten Größen „Umsatz“ und „Fixkosten“ und zur Berechnung der Förderung beachten Sie die offiziellen Hinweise im Antragsportal. \nHintergrundinformationen und eine Anleitung zum Erfassen des Antrags finden Sie im InfoDB-Dokument"]
[]
[null,null,"https://www.datev.de/help-center/documents/1020835"]
[]
[]
[null,null,"Diese Dokumente werden regelmäßig an den aktuellen Informationsstand angepasst. Die hier dargestellte Berechnung erfolgt insoweit unter Vorbehalt."]
[]
[null,null,"Maßgeblich ist die Berechnung auf der Verfahrensplattform für die Überbrückungshilfe "]
[null,null,"(www.ueberbrueckungshilfe-unternehmen.de)."]
[null,null,"Bei der Berechnung der voraussichtlichen Förderhöhe mit dem „Tool zur Corona-Überbrückungshilfe 3 Plus“ findet insbesondere die FAQ-Liste des Bundes zur Überbrückungshilfe Berücksichtigung."]
[]
[null,"Verbundene Unternehmen "]
[null,null,"Für verbundene Unternehmen ist insgesamt nur ein Antrag zu stellen. "]

{"sheet":"Antragstammdaten","index":1,"n_rows":52,"n_cols":5,"rows_kept":52,"cut":false,"hidden":false,"merged":[[2,0,2,1],[0,2,0,3],[1,2,1,3]]}
[null,null,{"$f":"Tooldaten!D5","v":"Tool zur Corona-Überbrückungshilfe 3 Plus "}]
[]
[{"$f":"Tooldaten!D6","v":"V1.5"}]
[null,"1. Antragsteller"]
[null,"1.1 Art des Mandats"]
[null,null,"Art des Mandats",null,"*"]
[]
[null,"1.2. Angaben zum Antragsteller"]
[null,null,"Anrede",null,"*"]
[null,null,"Titel"]
[null,null,"Vorname",null,"*"]
[null,null,"Nachname",null,"*"]
[null,null,"Name des Unternehmens",null,"*"]
[null,null,"Rechtsform",null,"*"]
[null,null,"Branche",null,"*"]
[null,null,"Handelsregisternummer"]
[null,null,"Amtsgericht"]
[null,null,"Branchenschlüssel",null,"*"]
[null,null,"Art des Unternehmens",null,"*"]
[]
[null,"1.3. Gemeinnützige Übernachtungsstätte"]
[null,null,"Name der Übernachtungsstätte"]
[null,null,"Straße und Hausnummer"]
[null,null,"Postleitzahl"]
[null,null,"Ort"]
[null,null,"Landkreis"]
[null,null,"Bundesland"]
[]
[null,"1.4. Steuer- und Finanzdaten"]
[null,null,"Umsatzsteuer Id.Nr."]
[null,null,"Steuernummer",null,"*"]
[null,null,"Steuerliche Identifikationsnummer",null,"*"]
[null,null,"Zuständiges Finanzamt",null,"*"]
[]
[null,"1.5. Adresse inländischer Sitz der Geschäftsführung"]
[null,null,"Straße und Hausnummer",null,"*"]
[null,null,"Postleitzahl",null,"*"]
[null,null,"Ort",null,"*"]
[null,null,"Landkreis",null,"*"]
[null,null,"Bundesland",null,"*"]
[]
[null,"1.6. Kontaktdaten"]
[null,null,"Telefon",null,"*"]
[null,null,"Fax",null,"*"]
[null,null,"E-Mail-Adresse",null,"*"]
[]
[null,"1.7. Beim Finanzamt hinterlegte Kontoverbindung"]
[null,null,"Kontoinhaber",null,"*"]
[null,null,"IBAN",null,"*"]
[null,null,"BIC",null,"*"]
[null,null,"Kreditinstitut"]
[null,null,"(mit * markierte Angaben sind im Online-Portal des BMWi verpflichtend anzugeben)"]

{"sheet":"Tabelle1","index":2,"n_rows":87,"n_cols":17,"rows_kept":87,"cut":false,"hidden":false,"merged":[[71,2,71,5],[36,2,36,5],[47,2,47,5],[42,2,42,5],[43,2,43,5],[37,2,37,5],[38,2,38,5],[39,2,39,5],[40,2,40,5],[41,2,41,5],[46,2,46,5],[45,2,45,5],[44,2,44,5],[49,2,49,5],[67,2,67,5],[50,2,50,5],[1,2,1,8],[0,2,0,8],[2,0,2,1],[30,2,30,5],[10,5,10,8],[19,2,19,5],[17,4,17,5],[9,5,9,8],[16,2,16,5],[23,2,23,5],[26,2,26,5],[28,2,28,5],[15,2,15,5],[62,2,62,5],[63,2,63,5],[20,2,20,5],[58,2,58,5],[34,2,35,5],[31,2,31,5],[32,2,32,5],[33,2,33,5],[65,2,65,5],[66,2,66,5],[73,2,73,5],[11,5,11,9],[51,2,51,5],[52,2,52,5],[53,2,53,5],[59,2,59,5],[60,2,60,5],[12,4,12,8],[29,2,29,5],[24,2,24,5],[25,2,25,5],[27,2,27,5],[64,2,64,5],[54,2,54,5]]}
[null,null,{"$f":"Tooldaten!D5","v":"Tool zur Corona-Überbrückungshilfe 3 Plus "},null,null,null,null,null,null,null,null,null,"Auf U57 bis 67 achten"]
[]
[{"$f":"Tooldaten!D6","v":"V1.5"}]
[null,"Antragstellung und Prüfung der Antragsvoraussetzungen"]
[null,null,null,null,null,null,null,null,null,null,null,0,null,null,null,0,0]
[null,null,null,null,null,"Beschäftigte zum 29. Februar 2020 / 30. Juni 2021:","keine",null,null,null,null,null,null,null,null,null,"Regelförderung (ggfs. gekappt max. mtl. 50.000 €)"]
[null,null,null,null,null,null,null,null,null,null,null,null,null,null,null,null,"Regelförderung (ggfs. gekappt max. mtl. 50.000 €)"]
[null,null,null,null,null,null,null,null,"Antragsnummer:",null,null,null,null,null,null,null,"Regelförderung (ggfs. gekappt max. mtl. 50.000 €)"]
[]
[null,null,"Ermittlung der Vergleichsumsätze:",null,null,"Zu jedem Fördermonat den gleichen Monat aus dem Jahr 2019 als Vergleichsumsatz"]
[null,null,"Ermittlung der Vergleichsumsätze:",null,null,"Zu jedem Fördermonat den gleichen Monat aus dem Jahr 2019 als Vergleichsumsatz",null,null,null,null,null,null,"Gründungsdatum:",null,null,{"$f":"Q11-O11","v":43586},"2019-05-01"]
[null,null,"Ermittlung der Vergleichsumsätze:",null,null,"Monatlicher Durchschnittsumsatz im Kalenderjahr 2019",null,null,null,null,null,null,null,null,null,{"$f":"Q12-O11","v":43617},"2019-06-01"]
[]
[null,null,null,null,null,null,"Juli","August","September","Summe",null,null,"Variante:",1,"(1: Zeile 10 relevant, 2: Zeile 11 relevant, 3: Zeile 12 relevant)"]
[null,"1. Berechnung der Antragsberechtigung und Umsätze für den Förderzeitraum",null,null,null,null,null,null,null,null,null,null,"Novemberhilfe angegeben:",null,null,0,"(0: nein, 1 ja)"]
[null,null,"Umsätze 2021",null,null,null,null,null,null,{"$f":"SUM(G16:I16)","v":0},null,null,"Dezemberhilfe angegeben:",null,null,0,"(0: nein, 1 ja)"]
[null,null,"Umsätze Juli bis September 2019",null,null,null,null,null,null,{"$f":"SUM(G17:I17)","v":0}]
[null,null,null,null,"oder alternativ: Jahresumsatz 2019:"]
[null,null,"Veränderung der Umsätze in %",null,null,null,{"$f":"AbweichungInProzent(G16,G17)","v":0},0,0]
[null,null,"Fördersatz (Erstattung der Fixkosten) in %",null,null,null,{"$f":"ErstattungInProzent(G$19,$L$5)","v":0},{"$f":"ErstattungInProzent(H$19,$L$5)","v":0},{"$f":"ErstattungInProzent(I$19,$L$5)","v":0}]
[null,null,"Eigenkapitalzuschuss in %",null,null,null,{"$f":"IF(AND(G19<=-50,G22>=5),40,IF(AND(G19<=-50,G22=4),35,IF(AND(G19<=-50,G22=3),25,0)))","v":0},0,0,null,null,null,"Anzahl der Monate mit mind. 50% Umsatzrückgang:",null,null,null,0]
[null,null,null,null,null,null,{"$f":"SUM(Q21,G19<=-50)","v":0},{"$f":"SUM(Q21,G19<=-50,H19<=-50)","v":0},{"$f":"SUM(Q21,G19<=-50,H19<=-50,I19<=-50)","v":0}]
[null,"2. Ermittlung erstattungsfähiger Fixkosten",null,null,null,null,null,null,null,null,null,null,"Anschubhilfe-Branche liegt vor:",null,null,0]
[null,"1.","Mieten und Pachten für Gebäude, Grundstücke und Räumlichkeiten",null,null,null,null,null,null,{"$f":"SUM(G24:I24)","v":0},null,null,"Restart gewählt:",null,null,0]
[null,"2.","Weitere Mietkosten",null,null,null,null,null,null,0]
[null,"3.","Zinsaufwendungen für betriebliche Kredite und Darlehen",null,null,null,null,null,null,0]
[null,"4.","Abschreibungen auf Wirtschaftsgüter des Anlagevermögens bis zu einer Höhe von 50 %",null,null,null,null,null,null,0]
[null,"5.","Finanzierungskostenanteil von Leasingraten",null,null,null,null,null,null,0]
[null,"6.","Ausgaben für notwendige Instandhaltung, Wartung oder Einlagerung",null,null,null,null,null,null,0]
[null,"7.","Ausgaben für Elektrizität, Wasser, Heizung und Reinigung",null,null,null,null,null,null,0]
[null,"8.","Grundsteuern",null,null,null,null,null,null,0,null,1]
[null,"9.","Betriebliche Lizenzgebühren",null,null,null,null,null,null,0]
[null,"10.","Versicherungen, Abonnements und andere feste betriebliche Ausgaben",null,null,null,null,null,null,0]
[null,"11.","Kosten für prüfende Dritte, die im Rahmen der Beantragung der Corona-Überbrückungshilfe anfallen",null,null,null,null,null,null,0]
[null,"12.","Personalaufwendungen, die nicht von Kurzarbeitergeld erfasst sind",null,null,null,false,false,false]
[null,null,null,null,null,null,{"$f":"SUM(G24:G34)*0.2*G35*OR($P$23,NOT($P$24))","v":0},{"$f":"SUM(H24:H34)*0.2*H35*OR($P$23,NOT($P$24))","v":0},{"$f":"SUM(I24:I34)*0.2*I35*OR($P$23,NOT($P$24))","v":0},0]
[null,"13.","Kosten für Auszubildende",null,null,null,null,null,null,{"$f":"SUM(G37:I37)","v":0}]
[null,"14.","Bauliche Modernisierungs-, Renovierungs- oder Umbaumaßnahmen bis zu 20.000 € pro Monat",null,null,null,null,null,null,0]
[null,"15.","Marketing- und Werbekosten",null,null,null,null,null,null,0]
[null,"16.","Ausgaben für Hygienemaßnahmen",null,null,null,null,null,null,0]
[null,"17.","Investitionen für Digitalisierung",null,null,null,null,null,null,0]
[null,"18.","Anwalts- und Gerichtskosten bis zu 20.000 € pro Monat",null,null,null,null,null,null,0]
[null,"23.","Eigenkapitalzuschuss",null,null,null,{"$f":"SUM(G24:G34)*G21/100","v":0},{"$f":"SUM(H24:H34)*H21/100","v":0},{"$f":"SUM(I24:I34)*I21/100","v":0},0]
[null,"50.","Provisionen und Ausfall- und Vorbereitungskosten (nur für Reisebranche)",null,null,null,null,null,null,0]
[null,"51.","Ausfall- und Vorbereitungskosten (nur für Veranstaltungs- und Kulturbranche)",null,null,null,null,null,null,0]
[null,"52.","Warenwertabschreibungen für verderbliche Ware oder Saisonware (nur für Einzelhandel, Hersteller, Großhändler und Gastronomiebetriebe)",null,null,null,null,null,null,0]
[null,"53.","Anschubhilfe (nur für Reisebranche oder Veranstaltungs- und Kulturbranche)",null,null,null,null,null,null,{"$f":"IF($P$24=1,\"\",IF($P$23=1,Personalkostenhilfe!J34,\"\"))","v":""}]
[null,null,null,null,null,null,null,null,null,0]
[null,"= erstattungsfähige Fixkosten",null,null,null,null,{"$f":"IF(AND($P$23 = 1,$P$24 = 0),SUM(G24:G48),SUM(G24:G46))","v":0},{"$f":"IF(AND($P$23 = 1,$P$24 = 0),SUM(H24:H48),SUM(H24:H46))","v":0},{"$f":"IF(AND($P$23 = 1,$P$24 = 0),SUM(I24:I48),SUM(I24:I46))","v":0},0]
[null,null,"Summe allgemeine Fixkosten (Erstattung gemäß errechnetem Fördersatz)",null,null,null,{"$f":"SUM(G24:G43)","v":0},{"$f":"SUM(H24:H43)","v":0},{"$f":"SUM(I24:I43)","v":0},0]
[null,null,"Summe besondere Fixkosten",null,null,null,{"$f":"SUM(G52:G54)","v":0},{"$f":"SUM(H52:H54)","v":0},{"$f":"SUM(I52:I54)","v":0},0]
[null,null,"davon besondere Fixkosten (50, 52 und 53) mit Erstattung gemäß Fördersatz",null,null,null,{"$f":"IF(AND($P$23 = 1,$P$24 = 0),SUM(G44,G46,G47),SUM(G44,G46))","v":0},{"$f":"IF(AND($P$23 = 1,$P$24 = 0),SUM(H44,H46,H47),SUM(H44,H46))","v":0},{"$f":"IF(AND($P$23 = 1,$P$24 = 0),SUM(I44,I46,I47),SUM(I44,I46))","v":0},0]
[null,null,"davon besondere Fixkosten (nur Position 51) mit Erstattung zu 90%",null,null,null,{"$f":"G45","v":0},{"$f":"H45","v":0},{"$f":"I45","v":0},{"$f":"SUM(G53:I53)","v":0}]
[null,null,"davon \"Restart-Prämie\" (Position 41)",null,null,null,{"$f":"IF($P$24=1,G61,\"\")","v":""},{"$f":"IF($P$24=1,H61,\"\")","v":""},{"$f":"IF($P$24=1,I61,\"\")","v":""},0]
[null,null,"Summe der Fixkosten 1 bis 11 (Grundlage für den Eigenkapitalzuschuss)",null,null,null,{"$f":"SUM(G24:G34)","v":0},{"$f":"SUM(H24:H34)","v":0},{"$f":"SUM(I24:I34)","v":0},0]
[]
[null,"3. Ermittlung der Personalkostenhilfe (\"Restart-Prämie\")"]
[null,null,null,null,"Personalkosten Vergleichsmonat Mai 2021: "]
[null,null,"Personalkosten im Förderzeitraum",null,null,null,null,null,null,{"$f":"SUM(G59:I59)","v":0}]
[null,null,"Personalkosten im Vergleichszeitraum",null,null,null,null,null,null,{"$f":"SUM(G60:I60)","v":0}]
[null,"41.","Personalkostenhilfe (\"Restart-Prämie\")",null,null,null,{"$f":"Personalkostenhilfe!D22","v":0},{"$f":"Personalkostenhilfe!F22","v":0},{"$f":"Personalkostenhilfe!H22","v":0},{"$f":"SUM(G61:I61)","v":0}]
[null,"4. Ermittlung der Förderung"]
[null,null,"Erstattung allgemeine Fixkosten",null,null,null,{"$f":"SUM(G24:G43)*G20/100","v":0},{"$f":"SUM(H24:H43)*H20/100","v":0},{"$f":"SUM(I24:I43)*I20/100","v":0},{"$f":"SUM(G63:I63)","v":0}]
[null,null,"Erstattung besonderer Fixkosten",null,null,null,{"$f":"SUM(G65:G67)","v":0},{"$f":"SUM(H65:H67)","v":0},0,{"$f":"SUM(G64:I64)","v":0},null,1]
[null,null,"davon Erstattung besonderer Fixkosten gemäß Fördersatz",null,null,null,{"$f":"G52*G20/100","v":0},{"$f":"H52*H20/100","v":0},0,{"$f":"SUM(G65:I65)","v":0},null,1]
[null,null,"davon Erstattung besonderer Fixkosten zu 90%",null,null,null,{"$f":"G53*0.9","v":0},{"$f":"H53*0.9","v":0},0,{"$f":"SUM(G66:I66)","v":0}]
[null,null,"davon Zuschuss aus Personalkostenhilfe (\"Restart-Prämie\")",null,null,null,{"$f":"IF($P$24=1,Personalkostenhilfe!D26,\"\")","v":""},{"$f":"IF($P$24=1,Personalkostenhilfe!F26,\"\")","v":""},{"$f":"IF($P$24=1,Personalkostenhilfe!H26,\"\")","v":""},0]
[null,null,"= rechnerischer Erstattungsbetrag",null,null,null,{"$f":"G63+G64","v":0},0,0,{"$f":"SUM(G68:I68)","v":0},null,1]
[null,null,"nicht berücksichtigte Fixkosten",null,null,null,{"$f":"NichtBeruecksichtigteFixkosten(G49,G68,G62)","v":0},{"$f":"NichtBeruecksichtigteFixkosten(H49,H68,H62)","v":0},{"$f":"NichtBeruecksichtigteFixkosten(I49,I68,I62)","v":0},null,null,1]
[null,null,"Erstattungssatz für nicht berücksichtigte Fixkosten in %",null,null,null,{"$f":"IF(L5<>3,ErstattungNichtBeruecksichtigteFixkosten(G69,G68,G19,G65),0)","v":0},{"$f":"IF(M5<>3,ErstattungNichtBeruecksichtigteFixkosten(H69,H68,H19,H65),0)","v":0},{"$f":"IF(N5<>3,ErstattungNichtBeruecksichtigteFixkosten(I69,I68,I19,I65),0)","v":0},null,null,1]
[null,null,"zusätzlicher förderfähiger Betrag bei Ausnahmefall",null,null,null,{"$f":"IF(L5<>3,G69*(G70/100),0)","v":0},{"$f":"IF(M5<>3,H69*(H70/100),0)","v":0},{"$f":"IF(N5<>3,I69*(I70/100),0)","v":0},{"$f":"SUM(#REF!)","v":{"$error":"#REF!"}}]
[null,null,"Erstattungsfähige Förderung (ggfs. gekappt bei maximal mtl. 10.000.000 €)",null,null,null,{"$f":"ErstattbareFoerderung(G71,G68)","v":0},{"$f":"ErstattbareFoerderung(H71,H68)","v":0},0,{"$f":"SUM(G72:I72)","v":0}]
[null,"./.","andere anrechenbare Förderungen/Hilfen/Erstattungen",null,null,null,null,null,null,{"$f":"SUM(G73:I73)","v":0}]
[null,"=","Förderung",null,null,null,{"$f":"IF(G72-G73<0,0,G72-G73)","v":0},{"$f":"IF(H72-H73<0,0,H72-H73)","v":0},{"$f":"IF(I72-I73<0,0,I72-I73)","v":0},{"$f":"IF(C74=\"Förderung\",SUM(G74:I74),MIN(SUM(G74:I74),1800000))","v":0}]
[]
[]
[null,null,null,null,null,null,null,null,null,null,null,1,null,null,null,null,1]
[]
[]
[null,null,null,null,null,null,null,null,null,null,null,1,null,null,null,null,1]
[null,null,null,null,null,null,null,null,null,null,null,null,null,null,null,null,1]
[null,null,null,null,null,null,null,null,null,null,null,null,null,null,null,null,1]
[]
[]
[null,null,null,null,null,null,null,null,null,null,null,1]
[null,null,null,null,null,null,null,null,null,null,null,1]
[null,null,null,null,null,null,null,null,null,null,null,1]

{"sheet":"Personalkostenhilfe","index":3,"n_rows":34,"n_cols":10,"rows_kept":34,"cut":false,"hidden":false,"merged":[[9,1,9,9],[11,1,11,9],[12,1,12,9],[27,1,27,9],[1,2,1,3],[2,0,2,1],[5,1,5,9],[7,1,7,9]]}
[null,{"$f":"\"   \" & Tooldaten!D5","v":"   Tool zur Corona-Überbrückungshilfe 3 Plus "}]
[]
[{"$f":"Tooldaten!D6","v":"V1.5"}]
[null,"Auswahl Personalkostenhilfe (\"Restart-Prämie\")"]
[]
[null,"Personalaufwendungen im Förderzeitraum werden entweder mit der Personalkostenhilfe (\"Restart-Prämie\") oder mit der Personalkostenpauschale für Personalkosten, die nicht von Kurzarbeitergeld erfasst sind, gefördert."]
[]
[null,"Unternehmen der Reisebranche oder der Veranstaltungs- und Kulturbranche können die \"Restart-Prämie\" zusätzlich zur allgemeinen Personalkostenpauschale und alternativ zur Anschubhilfe in Anspruch nehmen."]
[]
[null,"Die Auswahl gilt für den gesamten Förderzeitraum. Eine monatsweise Wahl ist nicht möglich."]
[]
[null,"Welche Position soll in die Förderung eingehen?","Nachname",null,"*"]
[null,"     Personalkostenhilfe (\"Restart-Prämie\")"]
[null,null,"Personalkosten im Mai 2021:",{"$f":"Tabelle1!F58","v":0}]
[null,null,null,"Juli",null,"August",null,"September"]
[null,null,"Personalkosten 2021:",{"$f":"Tabelle1!G59","v":0},null,{"$f":"Tabelle1!H59","v":0},null,{"$f":"Tabelle1!I59","v":0}]
[]
[null,null,"Personalkosten im Vergleichszeitraum:",{"$f":"Tabelle1!G60","v":0},null,{"$f":"Tabelle1!H60","v":0},null,{"$f":"Tabelle1!I60","v":0}]
[]
[null,null,"Heranziehbare Personalkosten:",{"$f":"MIN(D16,D18)","v":0},null,{"$f":"MIN(F16,F18)","v":0},null,{"$f":"MIN(H16,H18)","v":0}]
[]
[null,null,"Personalkostenhilfe (\"Restart-Prämie\"):\n(Differenz zu Mai 2021)",{"$f":"MAX(0,D20-$D14)","v":0},null,{"$f":"MAX(0,F20-$D14)","v":0},null,{"$f":"MAX(0,H20-$D14)","v":0}]
[]
[null,null,"Zuschusshöhe in %:",{"$f":"IF(Tabelle1!G20=0,0,60)","v":0},null,{"$f":"IF(Tabelle1!H20=0,0,40)","v":0},null,{"$f":"IF(Tabelle1!I20=0,0,20)","v":0}]
[]
[null,null,"Zuschuss:",{"$f":"D22*D24/100","v":0},"+",{"$f":"F22*F24/100","v":0},"+",{"$f":"H22*H24/100","v":0},"=",{"$f":"D26+F26+H26","v":0}]
[]
[null,"     Personalaufwendungen, die nicht von Kurzarbeitergeld umfasst sind"]
[null,null,null,"Juli",null,"August",null,"September"]
[null,null,"Betrag:",{"$f":"SUM(Tabelle1!G24:G34)*0.2*Tabelle1!G35","v":0},null,{"$f":"SUM(Tabelle1!H24:H34)*0.2*Tabelle1!H35","v":0},null,{"$f":"SUM(Tabelle1!I24:I34)*0.2*Tabelle1!I35","v":0}]
[]
[null,null,"Fördersatz in %:",{"$f":"Tabelle1!G20","v":0},null,{"$f":"Tabelle1!H20","v":0},null,{"$f":"Tabelle1!I20","v":0}]
[]
[null,null,"Förderung:",{"$f":"D30*D32/100","v":0},"+",{"$f":"F30*F32/100","v":0},"+",{"$f":"H30*H32/100","v":0},"=",{"$f":"D34+F34+H34","v":0}]

{"sheet":"Antragsberechtigung","index":4,"n_rows":31,"n_cols":3,"rows_kept":31,"cut":false,"hidden":false,"merged":[[20,1,20,2]]}
["2. Bestätigung zur Antragsberechtigung"]
["2.1 Erklärung"]
[null,"Der Antragsteller hatte im Jahr 2020 einen Jahresumsatz von nicht mehr als 750 Mio. Euro.","Ja"]
[null,"Der Antragsteller ist als Unternehmen dauerhaft wirtschaftlich am Markt tätig.","Ja"]
[null,"Bei dem Antragsteller handelt es sich nicht um ein öffentliches Unternehmen.","Ja"]
[null,"Der Antragsteller war nicht bereits am 31. Dezember 2019 in Schwierigkeiten gemäß Art. 2 Abs. 18 der Allgemeinen Gruppenfreistellungs-verordnung (Verordnung (EU) Nr. 651/2014).","Ja"]
[null,"Falls nicht zutreffend: Der Antragsteller versichert, die Schwierigkeiten (zwischenzeitlich) wieder überwunden zu haben."]
[null,"Der Umsatzeinbruch steht in Zusammenhang mit der Corona-Pandemie.","Ja"]
[null,"Es handelt sich beim Antragsteller um einen Soloselbständigen bzw. einen Freiberufler.","Nein"]
[null,"Falls zutreffend: Der Antragsteller übt seine Tätigkeit im Haupterwerb aus oder ist berechtigt, Überbrückungshilfe 3 Plus im Nebenerwerb zu beantragen."]
[null,"Der Antragsteller ist Klein- oder Kleinstunternehmen (gemäß Anhang I der Allgemeinen Gruppenfreistellungsverordnung (EU) Nr. 651/2014).","Nein"]
[]
["2.2 Anzahl der Mitarbeiter"]
[null,"Beschäftigte über 30 Stunden und Auszubildende"]
[null,"Beschäftigte bis 30 Stunden"]
[null,"Beschäftigte bis 20 Stunden"]
[null,"Beschäftigte auf 450 Euro-Basis"]
[null,"Gewichtete Summe der Mitarbeiter"]
[]
["2.3 Gründungsdatum"]
[null,"Das Unternehmen wurde vor dem 01.01.2019 gegründet."]
[]
["2.4 Überbrückungshilfe 3, Novemberhilfe oder Dezemberhilfe"]
[null,"Der Antragsteller hat für den Zeitraum November 2020 bis Juni 2021 Überbrückungshilfe 3, November- und /oder Dezemberhilfe des Bundes beantragt oder erhalten.","Nein"]
[null,"Anzahl der Fördermonate (November 2020 bis Juni 2021), in welchen der errechnete Umsatzeinbruch bei mindestens 50% lag."]
[]
["2.5 Branchenbereich"]
[null,"Der Antragsteller ist in folgendem Branchenbereich tätig:"]
[null,"- Reisebranche","Nein"]
[null,"- Veranstaltungs- und Kulturbranche\n(inkl. Antragsteller, die zumindest 20 Prozent ihres Umsatzes mit oder im Zusammenhang mit Veranstaltungen erzielen)","Nein"]
[null,"- Einzelhandel, Großhandel, Hersteller, professionelle Verwender i.S.v. Anhang 2 der FAQ","Nein"]

{"sheet":"Tooldaten","index":5,"n_rows":28,"n_cols":5,"rows_kept":28,"cut":false,"hidden":false,"merged":[]}
[]
[]
[]
[]
[null,null,"Tooltitel","Tool zur Corona-Überbrückungshilfe 3 Plus "]
[null,null,"Version","V1.5","auch bei frmAntragsberechtigung ändern"]
[]
[]
[null,null,"Ermittlung der Vergleichsumsätze:"]
[null,null,null,"Zu jedem Fördermonat den gleichen Monat aus dem Jahr 2019 als Vergleichsumsatz"]
[null,null,null,"Monatlicher Durchschnittsumsatz 2019"]
[null,null,null,"Monatlicher Durchschnittsumsatz im Kalenderjahr 2019"]
[null,null,null,"Monatlicher Durschschnittsumsatz basierend auf dem Ganzjahresumsatz 2020 aus steuerlicher Erfassung"]
[null,null,null,"Monatlicher Durchschnittsumsatz von Januar und Februar 2020"]
[null,null,null,"Monatlicher Durchschnittsumsatz von Juni bis September 2020"]
[]
[]
[]
[null,null,"Anzahl der Fördermonate mit mind. 50% Umsatzeinbruch:"]
[null,null,null,"0 Monate"]
[null,null,null,"1 Monat"]
[null,null,null,"2 Monate"]
[null,null,null,"3 Monate"]
[null,null,null,"4 Monate"]
[null,null,null,"5 Monate"]
[null,null,null,"6 Monate"]
[null,null,null,"7 Monate"]
[null,null,null,"8 Monate"]